[Event "Titled Tuesday Blitz November 08 Late 2022"]
[White "Shapiro, Daniel"]
[Black "Bogaudinov, Rushan"]
[WhiteFideId "2001780"]
[BlackFideId "4129288"]
[WhiteElo "2283"]
[BlackElo "1997"]
[Result "0-1"]
[Round "09"]
[TimeControl "180+1"]
[Date "2022.11.09"]
[WhiteClock "0:00:01"]
[BlackClock "0:00:04"]

1. d4 {[%clk 0:03:00]}  g6 {[%clk 0:02:29]} 2. e4 {[%clk 0:02:59]}  Bg7 {[%clk 0:02:29]} 3. Nc3 {[%clk 0:02:59]}  a6 {[%clk 0:02:30]} 4. a4 {[%clk 0:02:58]}  d6 {[%clk 0:02:29]} 5. Be3 {[%clk 0:02:54]}  Nf6 {[%clk 0:02:29]} 6. f3 {[%clk 0:02:52]}  O-O {[%clk 0:02:28]} 7. Bc4 {[%clk 0:02:50]}  Nc6 {[%clk 0:02:28]} 8. Qd2 {[%clk 0:02:48]}  e5 {[%clk 0:02:28]} 9. Nge2 {[%clk 0:02:33]}  exd4 {[%clk 0:02:28]} 10. Nxd4 {[%clk 0:02:33]}  Ne5 {[%clk 0:02:23]} 11. Ba2 {[%clk 0:02:26]}  c5 {[%clk 0:02:22]} 12. Nde2 {[%clk 0:02:23]}  Be6 {[%clk 0:02:21]} 13. Bh6 {[%clk 0:01:53]}  Bxa2 {[%clk 0:02:18]} 14. Rxa2 {[%clk 0:01:52]}  Nc4 {[%clk 0:02:13]} 15. Qc1 {[%clk 0:01:42]}  Bxh6 {[%clk 0:02:07]} 16. Qxh6 {[%clk 0:01:40]}  d5 {[%clk 0:02:08]} 17. O-O {[%clk 0:01:21]}  dxe4 {[%clk 0:02:02]} 18. fxe4 {[%clk 0:01:21]}  Re8 {[%clk 0:01:50]} 19. b3 {[%clk 0:00:58]}  Nd6 {[%clk 0:01:42]} 20. Qf4 {[%clk 0:00:53]}  Re6 {[%clk 0:01:42]} 21. Ng3 {[%clk 0:00:34]}  Qe7 {[%clk 0:01:31]} 22. Nd5 {[%clk 0:00:19]}  Nxd5 {[%clk 0:01:27]} 23. exd5 {[%clk 0:00:20]}  Re5 {[%clk 0:01:18]} 24. Raa1 {[%clk 0:00:19]}  Rxd5 {[%clk 0:01:14]} 25. Rae1 {[%clk 0:00:19]}  Qd7 {[%clk 0:01:09]} 26. Re5 {[%clk 0:00:18]}  Rxe5 {[%clk 0:01:05]} 27. Qxe5 {[%clk 0:00:18]}  Re8 {[%clk 0:01:04]} 28. Qxc5 {[%clk 0:00:17]}  Ne4 {[%clk 0:00:54]} 29. Nxe4 {[%clk 0:00:12]}  Rxe4 {[%clk 0:00:54]} 30. Qf2 {[%clk 0:00:11]}  f5 {[%clk 0:00:51]} 31. h3 {[%clk 0:00:10]}  Qe6 {[%clk 0:00:47]} 32. Rd1 {[%clk 0:00:08]}  Qe7 {[%clk 0:00:39]} 33. Kh1 {[%clk 0:00:04]}  Re2 {[%clk 0:00:34]} 34. Qd4 {[%clk 0:00:03]}  h5 {[%clk 0:00:21]} 35. Qd8+ {[%clk 0:00:03]}  Kf7 {[%clk 0:00:19]} 36. Qd7 {[%clk 0:00:01]}  Re1+ {[%clk 0:00:13]} 37. Kh2 {[%clk 0:00:01]}  Qxd7 {[%clk 0:00:11]} 38. Rxd7+ {[%clk 0:00:01]}  Re7 {[%clk 0:00:11]} 39. Rxe7+ {[%clk 0:00:01]}  Kxe7 {[%clk 0:00:12]} 40. Kg3 {[%clk 0:00:01]}  Kf6 {[%clk 0:00:11]} 41. Kf3 {[%clk 0:00:02]}  Ke5 {[%clk 0:00:11]} 42. h4 {[%clk 0:00:02]}  a5 {[%clk 0:00:05]} 43. g3 {[%clk 0:00:02]}  Kd4 {[%clk 0:00:03]} 44. Kf4 {[%clk 0:00:02]}  Kc3 {[%clk 0:00:04]} 45. Kg5 {[%clk 0:00:03]}  Kxc2 {[%clk 0:00:05]} 46. Kxg6 {[%clk 0:00:03]}  Kxb3 {[%clk 0:00:05]} 47. Kxh5 {[%clk 0:00:04]}  Kxa4 {[%clk 0:00:06]} 48. Kg6 {[%clk 0:00:05]}  b5 {[%clk 0:00:07]} 49. h5 {[%clk 0:00:06]}  b4 {[%clk 0:00:07]} 50. h6 {[%clk 0:00:07]}  b3 {[%clk 0:00:08]} 51. h7 {[%clk 0:00:07]}  b2 {[%clk 0:00:09]} 52. h8=Q {[%clk 0:00:08]}  b1=Q {[%clk 0:00:10]} 53. Qe8+ {[%clk 0:00:07]}  Qb5 {[%clk 0:00:09]} 54. Qe7 {[%clk 0:00:01]}  Qd5 {[%clk 0:00:05]} 55. Kf6 {[%clk 0:00:01]}  Kb3 {[%clk 0:00:04]} 56. Qe8 {[%clk 0:00:01]}  a4 {[%clk 0:00:04]} 0-1


[Site "https://www.chess.com"]

[Event "Titled Tuesday Blitz November 08 Late 2022"]
[White "Steen, Bobby"]
[Black "Desideri, Ricardo Maruchi"]
[WhiteFideId "2053870"]
[BlackFideId "2110440"]
[WhiteElo "2129"]
[BlackElo "1945"]
[Result "1-0"]
[Round "09"]
[TimeControl "180+1"]
[Date "2022.11.09"]
[WhiteClock "0:00:40"]
[BlackClock "0:00:01"]

1. e4 {[%clk 0:03:00]}  c5 {[%clk 0:02:55]} 2. Nf3 {[%clk 0:02:57]}  d6 {[%clk 0:02:53]} 3. d4 {[%clk 0:02:54]}  cxd4 {[%clk 0:02:51]} 4. Nxd4 {[%clk 0:02:55]}  Nf6 {[%clk 0:02:50]} 5. Nc3 {[%clk 0:02:53]}  a6 {[%clk 0:02:51]} 6. Bg5 {[%clk 0:02:51]}  Nbd7 {[%clk 0:02:47]} 7. f4 {[%clk 0:02:48]}  Qc7 {[%clk 0:02:43]} 8. Qf3 {[%clk 0:02:46]}  h6 {[%clk 0:02:43]} 9. Bxf6 {[%clk 0:02:41]}  Nxf6 {[%clk 0:02:35]} 10. h3 {[%clk 0:02:28]}  e6 {[%clk 0:02:32]} 11. g4 {[%clk 0:02:24]}  b5 {[%clk 0:02:26]} 12. g5 {[%clk 0:02:23]}  hxg5 {[%clk 0:02:25]} 13. fxg5 {[%clk 0:02:24]}  Nh5 {[%clk 0:02:19]} 14. g6 {[%clk 0:02:22]}  f6 {[%clk 0:02:06]} 15. Qg4 {[%clk 0:02:11]}  b4 {[%clk 0:01:42]} 16. Nxe6 {[%clk 0:01:56]}  Qe7 {[%clk 0:00:50]} 17. Nd5 {[%clk 0:01:55]}  Bxe6 {[%clk 0:00:50]} 18. Qxe6 {[%clk 0:01:52]}  Qxe6 {[%clk 0:00:49]} 19. Nc7+ {[%clk 0:01:53]}  Kd7 {[%clk 0:00:47]} 20. Nxe6 {[%clk 0:01:51]}  Kxe6 {[%clk 0:00:48]} 21. Bc4+ {[%clk 0:01:50]}  Kd7 {[%clk 0:00:43]} 22. O-O-O {[%clk 0:01:42]}  Nf4 {[%clk 0:00:37]} 23. h4 {[%clk 0:01:34]}  Nxg6 {[%clk 0:00:36]} 24. Bd5 {[%clk 0:01:32]}  Rc8 {[%clk 0:00:33]} 25. h5 {[%clk 0:01:32]}  Ne5 {[%clk 0:00:31]} 26. Bb7 {[%clk 0:01:29]}  Rc7 {[%clk 0:00:28]} 27. Bxa6 {[%clk 0:01:29]}  Be7 {[%clk 0:00:23]} 28. Bb5+ {[%clk 0:01:29]}  Kd8 {[%clk 0:00:20]} 29. Rdg1 {[%clk 0:01:29]}  Bf8 {[%clk 0:00:17]} 30. h6 {[%clk 0:01:28]}  gxh6 {[%clk 0:00:15]} 31. Rh5 {[%clk 0:01:24]}  Ke7 {[%clk 0:00:14]} 32. Rf5 {[%clk 0:01:22]}  Rc5 {[%clk 0:00:10]} 33. Be2 {[%clk 0:01:21]}  h5 {[%clk 0:00:08]} 34. Bxh5 {[%clk 0:01:13]}  Bh6+ {[%clk 0:00:08]} 35. Kd1 {[%clk 0:01:12]}  Bg5 {[%clk 0:00:08]} 36. Be2 {[%clk 0:01:09]}  Rh2 {[%clk 0:00:07]} 37. a4 {[%clk 0:01:03]}  bxa3 {[%clk 0:00:06]} 38. bxa3 {[%clk 0:01:00]}  Ra5 {[%clk 0:00:07]} 39. Rg3 {[%clk 0:00:58]}  Rh1+ {[%clk 0:00:05]} 40. Rf1 {[%clk 0:00:58]}  Rxf1+ {[%clk 0:00:05]} 41. Bxf1 {[%clk 0:00:59]}  Rc5 {[%clk 0:00:03]} 42. a4 {[%clk 0:00:58]}  Nc4 {[%clk 0:00:01]} 43. Rc3 {[%clk 0:00:39]}  Ne3+ {[%clk 0:00:01]} 44. Kd2 {[%clk 0:00:38]}  Rxc3 {[%clk 0:00:01]} 45. Kxc3 {[%clk 0:00:39]}  Nxf1 {[%clk 0:00:01]} 46. a5 {[%clk 0:00:40]} 1-0


[Site "https://www.chess.com"]

[Event "Titled Tuesday Blitz November 08 Late 2022"]
[White "Swiercz, Dariusz"]
[Black "Fernandez Guillen, Ernesto J."]
[WhiteFideId "1126881"]
[BlackFideId "3512428"]
[WhiteElo "2627"]
[BlackElo "2450"]
[Result "0-1"]
[Round "09"]
[TimeControl "180+1"]
[Date "2022.11.08"]
[WhiteClock "0:00:12"]
[BlackClock "0:00:09"]

1. d4 {[%clk 0:02:54]}  Nf6 {[%clk 0:02:59]} 2. Bg5 {[%clk 0:02:54]}  g6 {[%clk 0:02:56]} 3. Bxf6 {[%clk 0:02:54]}  exf6 {[%clk 0:02:57]} 4. e3 {[%clk 0:02:55]}  Bg7 {[%clk 0:02:58]} 5. g3 {[%clk 0:02:55]}  O-O {[%clk 0:02:58]} 6. Bg2 {[%clk 0:02:56]}  c6 {[%clk 0:02:59]} 7. c4 {[%clk 0:02:56]}  d6 {[%clk 0:03:00]} 8. Nc3 {[%clk 0:02:56]}  f5 {[%clk 0:03:01]} 9. h4 {[%clk 0:02:56]}  Re8 {[%clk 0:03:02]} 10. h5 {[%clk 0:02:55]}  Nd7 {[%clk 0:03:02]} 11. Nge2 {[%clk 0:02:51]}  Nf6 {[%clk 0:03:02]} 12. hxg6 {[%clk 0:02:50]}  hxg6 {[%clk 0:03:03]} 13. Qc2 {[%clk 0:02:49]}  Be6 {[%clk 0:03:01]} 14. b3 {[%clk 0:02:46]}  a5 {[%clk 0:03:00]} 15. Nf4 {[%clk 0:02:44]}  Bd7 {[%clk 0:03:00]} 16. a3 {[%clk 0:02:40]}  Qe7 {[%clk 0:02:50]} 17. Kf1 {[%clk 0:02:26]}  Ne4 {[%clk 0:02:44]} 18. Rd1 {[%clk 0:02:12]}  a4 {[%clk 0:02:27]} 19. b4 {[%clk 0:02:10]}  Nxc3 {[%clk 0:02:06]} 20. Qxc3 {[%clk 0:02:11]}  g5 {[%clk 0:02:06]} 21. Nh5 {[%clk 0:02:03]}  Bh8 {[%clk 0:02:06]} 22. Qc2 {[%clk 0:01:59]}  b5 {[%clk 0:01:54]} 23. cxb5 {[%clk 0:01:35]}  cxb5 {[%clk 0:01:54]} 24. Bxa8 {[%clk 0:01:35]}  Rxa8 {[%clk 0:01:50]} 25. Rc1 {[%clk 0:01:35]}  Qe8 {[%clk 0:01:18]} 26. Qd3 {[%clk 0:01:22]}  Rc8 {[%clk 0:01:05]} 27. Rxc8 {[%clk 0:01:19]}  Qxc8 {[%clk 0:01:06]} 28. Kg2 {[%clk 0:01:11]}  Qb7+ {[%clk 0:00:48]} 29. d5 {[%clk 0:01:08]}  Qc8 {[%clk 0:00:39]} 30. g4 {[%clk 0:01:04]}  fxg4 {[%clk 0:00:33]} 31. Ng3 {[%clk 0:00:55]}  f5 {[%clk 0:00:33]} 32. Ne2 {[%clk 0:00:36]}  Qc4 {[%clk 0:00:27]} 33. Qxc4 {[%clk 0:00:35]}  bxc4 {[%clk 0:00:28]} 34. Rc1 {[%clk 0:00:34]}  Bb5 {[%clk 0:00:27]} 35. Nc3 {[%clk 0:00:31]}  Bxc3 {[%clk 0:00:24]} 36. Rxc3 {[%clk 0:00:32]}  Kg7 {[%clk 0:00:23]} 37. Kf1 {[%clk 0:00:17]}  Kf6 {[%clk 0:00:23]} 38. Ke2 {[%clk 0:00:17]}  Ke5 {[%clk 0:00:22]} 39. Kd2 {[%clk 0:00:17]}  Kxd5 {[%clk 0:00:11]} 40. Rc1 {[%clk 0:00:18]}  Ke4 {[%clk 0:00:11]} 41. Kc3 {[%clk 0:00:07]}  Kf3 {[%clk 0:00:08]} 42. Rd1 {[%clk 0:00:06]}  Kxf2 {[%clk 0:00:06]} 43. Rd5 {[%clk 0:00:06]}  Bd7 {[%clk 0:00:06]} 44. Rxd6 {[%clk 0:00:06]}  Bc8 {[%clk 0:00:04]} 45. Rg6 {[%clk 0:00:03]}  g3 {[%clk 0:00:03]} 46. Rxg5 {[%clk 0:00:03]}  g2 {[%clk 0:00:04]} 47. Kxc4 {[%clk 0:00:03]}  g1=Q {[%clk 0:00:02]} 48. Rxg1 {[%clk 0:00:03]}  Kxg1 {[%clk 0:00:03]} 49. Kd4 {[%clk 0:00:03]}  Kf2 {[%clk 0:00:03]} 50. e4 {[%clk 0:00:03]}  f4 {[%clk 0:00:04]} 51. e5 {[%clk 0:00:04]}  Kg3 {[%clk 0:00:03]} 52. b5 {[%clk 0:00:05]}  f3 {[%clk 0:00:03]} 53. b6 {[%clk 0:00:04]}  f2 {[%clk 0:00:04]} 54. e6 {[%clk 0:00:05]}  f1=Q {[%clk 0:00:02]} 55. Kc5 {[%clk 0:00:06]}  Qf2+ {[%clk 0:00:03]} 56. Kd6 {[%clk 0:00:07]}  Qxb6+ {[%clk 0:00:03]} 57. Ke5 {[%clk 0:00:07]}  Qxe6+ {[%clk 0:00:04]} 58. Kd4 {[%clk 0:00:08]}  Qb3 {[%clk 0:00:04]} 59. Kc5 {[%clk 0:00:09]}  Qxa3+ {[%clk 0:00:05]} 60. Kb5 {[%clk 0:00:10]}  Qb3+ {[%clk 0:00:06]} 61. Ka5 {[%clk 0:00:10]}  Bf5 {[%clk 0:00:06]} 62. Ka6 {[%clk 0:00:10]}  Bg4 {[%clk 0:00:07]} 63. Ka5 {[%clk 0:00:11]}  a3 {[%clk 0:00:07]} 64. Ka6 {[%clk 0:00:12]}  a2 {[%clk 0:00:08]} 65. Ka5 {[%clk 0:00:12]}  a1=Q# {[%clk 0:00:09]} 0-1


[Site "https://www.chess.com"]

[Event "Titled Tuesday Blitz November 08 Late 2022"]
[White "Taboas Rodriguez, Daniel"]
[Black "Musovic, Armin"]
[WhiteFideId "2208466"]
[BlackFideId "939935"]
[WhiteElo "2329"]
[BlackElo "2288"]
[Result "0-1"]
[Round "09"]
[TimeControl "180+1"]
[Date "2022.11.09"]
[WhiteClock "0:00:05"]
[BlackClock "0:00:09"]

1. d4 {[%clk 0:02:59]}  d5 {[%clk 0:02:59]} 2. c4 {[%clk 0:02:59]}  c5 {[%clk 0:02:59]} 3. cxd5 {[%clk 0:02:57]}  e6 {[%clk 0:02:59]} 4. dxe6 {[%clk 0:02:55]}  Bxe6 {[%clk 0:03:00]} 5. Nf3 {[%clk 0:02:55]}  Nc6 {[%clk 0:02:59]} 6. e3 {[%clk 0:02:55]}  a6 {[%clk 0:02:59]} 7. Nc3 {[%clk 0:02:54]}  Nf6 {[%clk 0:03:00]} 8. Be2 {[%clk 0:02:52]}  Be7 {[%clk 0:03:00]} 9. O-O {[%clk 0:02:50]}  O-O {[%clk 0:03:00]} 10. dxc5 {[%clk 0:02:49]}  Qa5 {[%clk 0:03:01]} 11. Bd2 {[%clk 0:02:34]}  Qxc5 {[%clk 0:02:59]} 12. Rc1 {[%clk 0:02:33]}  Rfd8 {[%clk 0:02:50]} 13. a3 {[%clk 0:02:30]}  Qf5 {[%clk 0:02:39]} 14. Qc2 {[%clk 0:02:27]}  Qh5 {[%clk 0:02:21]} 15. Rfd1 {[%clk 0:02:14]}  Bd6 {[%clk 0:02:20]} 16. Ne4 {[%clk 0:01:56]}  Nxe4 {[%clk 0:02:12]} 17. Qxe4 {[%clk 0:01:57]}  Bf5 {[%clk 0:01:51]} 18. Qh4 {[%clk 0:01:48]}  Qg6 {[%clk 0:01:48]} 19. Bc3 {[%clk 0:01:43]}  Be4 {[%clk 0:01:37]} 20. Qh3 {[%clk 0:01:36]}  h6 {[%clk 0:01:29]} 21. Nd2 {[%clk 0:01:15]}  Bf5 {[%clk 0:01:28]} 22. Qh5 {[%clk 0:01:13]}  Qh7 {[%clk 0:01:22]} 23. Nc4 {[%clk 0:01:06]}  Bc7 {[%clk 0:01:20]} 24. Bg4 {[%clk 0:01:01]}  Bc2 {[%clk 0:01:13]} 25. Rd2 {[%clk 0:00:53]}  Bg6 {[%clk 0:01:12]} 26. Qh3 {[%clk 0:00:51]}  b5 {[%clk 0:01:10]} 27. Rxd8+ {[%clk 0:00:48]}  Rxd8 {[%clk 0:01:09]} 28. Nd2 {[%clk 0:00:49]}  a5 {[%clk 0:01:02]} 29. Nf3 {[%clk 0:00:47]}  b4 {[%clk 0:01:00]} 30. axb4 {[%clk 0:00:48]}  axb4 {[%clk 0:01:01]} 31. Bd4 {[%clk 0:00:48]}  Bc2 {[%clk 0:00:58]} 32. Qh5 {[%clk 0:00:33]}  b3 {[%clk 0:00:44]} 33. Qc5 {[%clk 0:00:33]}  Qe4 {[%clk 0:00:45]} 34. h3 {[%clk 0:00:20]}  Bd6 {[%clk 0:00:35]} 35. Qb6 {[%clk 0:00:20]}  Rb8 {[%clk 0:00:33]} 36. Qa6 {[%clk 0:00:19]}  Nxd4 {[%clk 0:00:25]} 37. Nxd4 {[%clk 0:00:19]}  Qe5 {[%clk 0:00:26]} 38. g3 {[%clk 0:00:18]}  Bc5 {[%clk 0:00:22]} 39. Nc6 {[%clk 0:00:17]}  Qxb2 {[%clk 0:00:21]} 40. Re1 {[%clk 0:00:15]}  Rf8 {[%clk 0:00:20]} 41. Qc4 {[%clk 0:00:14]}  Ba3 {[%clk 0:00:19]} 42. Nd4 {[%clk 0:00:09]}  Rb8 {[%clk 0:00:16]} 43. Bh5 {[%clk 0:00:08]}  g6 {[%clk 0:00:15]} 44. Bf3 {[%clk 0:00:08]}  Bf8 {[%clk 0:00:11]} 45. Bd5 {[%clk 0:00:09]}  Kh8 {[%clk 0:00:09]} 46. Bxf7 {[%clk 0:00:09]}  Bg7 {[%clk 0:00:10]} 47. Qc7 {[%clk 0:00:08]}  Rf8 {[%clk 0:00:09]} 48. Qe7 {[%clk 0:00:08]}  Qc3 {[%clk 0:00:08]} 49. Ne6 {[%clk 0:00:08]}  Qxe1+ {[%clk 0:00:08]} 50. Kg2 {[%clk 0:00:05]}  Be4+ {[%clk 0:00:08]} 51. f3 {[%clk 0:00:05]}  Qe2+ {[%clk 0:00:09]} 52. Kg1 {[%clk 0:00:05]}  Qxe3+ {[%clk 0:00:08]} 53. Kh2 {[%clk 0:00:05]}  Qf2+ {[%clk 0:00:08]} 54. Kh1 {[%clk 0:00:05]}  Bxf3# {[%clk 0:00:09]} 0-1


[Site "https://www.chess.com"]

[Event "Titled Tuesday Blitz November 08 Late 2022"]
[White "Tan, Ralph"]
[Black "Sebag, Marie"]
[WhiteFideId "30966590"]
[BlackFideId "617822"]
[WhiteElo "2059"]
[BlackElo "2440"]
[Result "0-1"]
[Round "09"]
[TimeControl "180+1"]
[Date "2022.11.09"]
[WhiteClock "0:00:06"]
[BlackClock "0:00:07"]

1. Nf3 {[%clk 0:02:53]}  d5 {[%clk 0:02:59]} 2. g3 {[%clk 0:02:53]}  c6 {[%clk 0:02:56]} 3. Bg2 {[%clk 0:02:52]}  Bg4 {[%clk 0:02:56]} 4. Ne5 {[%clk 0:02:51]}  Bf5 {[%clk 0:02:56]} 5. O-O {[%clk 0:02:51]}  Nd7 {[%clk 0:02:55]} 6. d4 {[%clk 0:02:51]}  e6 {[%clk 0:02:54]} 7. c4 {[%clk 0:02:49]}  Bd6 {[%clk 0:02:53]} 8. Nxd7 {[%clk 0:02:32]}  Qxd7 {[%clk 0:02:53]} 9. Nc3 {[%clk 0:02:31]}  Nf6 {[%clk 0:02:53]} 10. cxd5 {[%clk 0:02:18]}  exd5 {[%clk 0:02:52]} 11. Re1 {[%clk 0:02:11]}  O-O {[%clk 0:02:50]} 12. b3 {[%clk 0:02:03]}  Rfe8 {[%clk 0:02:46]} 13. Bb2 {[%clk 0:02:02]}  Re7 {[%clk 0:02:41]} 14. e3 {[%clk 0:02:01]}  Rae8 {[%clk 0:02:40]} 15. Ne2 {[%clk 0:02:00]}  Bh3 {[%clk 0:02:39]} 16. Qd3 {[%clk 0:01:42]}  h5 {[%clk 0:02:36]} 17. Bc3 {[%clk 0:01:18]}  h4 {[%clk 0:02:35]} 18. Nf4 {[%clk 0:01:18]}  Bf5 {[%clk 0:02:08]} 19. Qf1 {[%clk 0:01:12]}  Ne4 {[%clk 0:02:02]} 20. Bxe4 {[%clk 0:01:09]}  Bxe4 {[%clk 0:02:01]} 21. f3 {[%clk 0:01:10]}  Bh7 {[%clk 0:01:52]} 22. Qf2 {[%clk 0:01:09]}  Qf5 {[%clk 0:01:25]} 23. g4 {[%clk 0:01:04]}  Qc2 {[%clk 0:01:23]} 24. Qxc2 {[%clk 0:00:59]}  Bxc2 {[%clk 0:01:20]} 25. Kf2 {[%clk 0:00:58]}  f6 {[%clk 0:01:12]} 26. Ng2 {[%clk 0:00:50]}  h3 {[%clk 0:01:03]} 27. Nf4 {[%clk 0:00:49]}  Kf7 {[%clk 0:01:01]} 28. Bd2 {[%clk 0:00:39]}  g5 {[%clk 0:00:44]} 29. Nxh3 {[%clk 0:00:35]}  Rh8 {[%clk 0:00:44]} 30. Kg2 {[%clk 0:00:29]}  Kg6 {[%clk 0:00:44]} 31. Rh1 {[%clk 0:00:27]}  Reh7 {[%clk 0:00:41]} 32. Nf2 {[%clk 0:00:26]}  Rxh2+ {[%clk 0:00:40]} 33. Rxh2 {[%clk 0:00:26]}  Rxh2+ {[%clk 0:00:38]} 34. Kf1 {[%clk 0:00:26]}  Bg3 {[%clk 0:00:26]} 35. Be1 {[%clk 0:00:20]}  f5 {[%clk 0:00:21]} 36. Rc1 {[%clk 0:00:19]}  Bxf2 {[%clk 0:00:17]} 37. Rxc2 {[%clk 0:00:17]}  Rh1+ {[%clk 0:00:15]} 38. Kg2 {[%clk 0:00:12]}  Rxe1 {[%clk 0:00:14]} 39. gxf5+ {[%clk 0:00:12]}  Kxf5 {[%clk 0:00:10]} 40. Kxf2 {[%clk 0:00:13]}  Rh1 {[%clk 0:00:10]} 41. Kg2 {[%clk 0:00:14]}  Re1 {[%clk 0:00:10]} 42. Kf2 {[%clk 0:00:14]}  Rd1 {[%clk 0:00:10]} 43. Ke2 {[%clk 0:00:13]}  Rh1 {[%clk 0:00:10]} 44. Kd3 {[%clk 0:00:14]}  Rh3 {[%clk 0:00:11]} 45. Rf2 {[%clk 0:00:14]}  Rg3 {[%clk 0:00:09]} 46. b4 {[%clk 0:00:14]}  a6 {[%clk 0:00:09]} 47. a4 {[%clk 0:00:14]}  Rh3 {[%clk 0:00:10]} 48. Kd2 {[%clk 0:00:11]}  Rh1 {[%clk 0:00:10]} 49. Kd3 {[%clk 0:00:11]}  Ra1 {[%clk 0:00:09]} 50. a5 {[%clk 0:00:10]}  Ra3+ {[%clk 0:00:09]} 51. Kd2 {[%clk 0:00:07]}  Ra4 {[%clk 0:00:09]} 52. Kc3 {[%clk 0:00:07]}  Ra3+ {[%clk 0:00:09]} 53. Kd2 {[%clk 0:00:08]}  Rb3 {[%clk 0:00:10]} 54. Rf1 {[%clk 0:00:06]}  Rxb4 {[%clk 0:00:10]} 55. Rc1 {[%clk 0:00:06]}  Rb5 {[%clk 0:00:09]} 56. Rc5 {[%clk 0:00:04]}  Rxc5 {[%clk 0:00:09]} 57. dxc5 {[%clk 0:00:05]}  g4 {[%clk 0:00:09]} 58. fxg4+ {[%clk 0:00:06]}  Kxg4 {[%clk 0:00:10]} 59. Kd3 {[%clk 0:00:05]}  Kg3 {[%clk 0:00:08]} 60. e4 {[%clk 0:00:04]}  dxe4+ {[%clk 0:00:03]} 61. Kxe4 {[%clk 0:00:05]}  Kf2 {[%clk 0:00:03]} 62. Ke5 {[%clk 0:00:05]}  Ke3 {[%clk 0:00:03]} 63. Kd6 {[%clk 0:00:06]}  Kd4 {[%clk 0:00:04]} 64. Kc7 {[%clk 0:00:06]}  Kxc5 {[%clk 0:00:04]} 65. Kxb7 {[%clk 0:00:06]}  Kb5 {[%clk 0:00:05]} 66. Kc7 {[%clk 0:00:05]}  c5 {[%clk 0:00:05]} 67. Kd6 {[%clk 0:00:05]}  c4 {[%clk 0:00:06]} 68. Kd5 {[%clk 0:00:06]}  c3 {[%clk 0:00:06]} 69. Kd4 {[%clk 0:00:06]}  c2 {[%clk 0:00:07]} 0-1


[Site "https://www.chess.com"]

[Event "Titled Tuesday Blitz November 08 Late 2022"]
[White "Terry, Renato"]
[Black "Paravyan, David"]
[WhiteFideId "3803457"]
[BlackFideId "4194985"]
[WhiteElo "2577"]
[BlackElo "2546"]
[Result "0-1"]
[Round "09"]
[TimeControl "180+1"]
[Date "2022.11.08"]
[WhiteClock "0:00:02"]
[BlackClock "0:00:28"]

1. Nf3 {[%clk 0:03:00]}  Nf6 {[%clk 0:03:00]} 2. d4 {[%clk 0:03:00]}  g6 {[%clk 0:03:00]} 3. Bg5 {[%clk 0:03:00]}  Bg7 {[%clk 0:02:59]} 4. c3 {[%clk 0:03:00]}  h6 {[%clk 0:02:55]} 5. Bh4 {[%clk 0:03:00]}  c5 {[%clk 0:02:54]} 6. e3 {[%clk 0:02:59]}  cxd4 {[%clk 0:02:55]} 7. exd4 {[%clk 0:02:59]}  O-O {[%clk 0:02:54]} 8. Bd3 {[%clk 0:02:56]}  Nc6 {[%clk 0:02:53]} 9. O-O {[%clk 0:02:56]}  d6 {[%clk 0:02:53]} 10. Re1 {[%clk 0:02:56]}  Nh5 {[%clk 0:02:52]} 11. d5 {[%clk 0:02:47]}  Ne5 {[%clk 0:02:51]} 12. Nxe5 {[%clk 0:02:47]}  dxe5 {[%clk 0:02:50]} 13. Bf1 {[%clk 0:02:23]}  Nf4 {[%clk 0:02:39]} 14. c4 {[%clk 0:02:22]}  g5 {[%clk 0:02:38]} 15. Bg3 {[%clk 0:02:22]}  e6 {[%clk 0:02:35]} 16. Nc3 {[%clk 0:02:21]}  exd5 {[%clk 0:02:33]} 17. cxd5 {[%clk 0:02:13]}  Bf5 {[%clk 0:02:34]} 18. Qb3 {[%clk 0:02:12]}  Qd7 {[%clk 0:02:06]} 19. Rad1 {[%clk 0:02:01]}  Rad8 {[%clk 0:01:48]} 20. f3 {[%clk 0:01:42]}  a6 {[%clk 0:01:42]} 21. a4 {[%clk 0:01:39]}  Rfe8 {[%clk 0:01:37]} 22. Bf2 {[%clk 0:01:39]}  Bf8 {[%clk 0:01:29]} 23. Ne4 {[%clk 0:01:37]}  Bxe4 {[%clk 0:01:23]} 24. fxe4 {[%clk 0:01:37]}  Rc8 {[%clk 0:01:16]} 25. Rc1 {[%clk 0:01:27]}  Rxc1 {[%clk 0:01:16]} 26. Rxc1 {[%clk 0:01:28]}  Rc8 {[%clk 0:01:17]} 27. Rxc8 {[%clk 0:01:27]}  Qxc8 {[%clk 0:01:17]} 28. g3 {[%clk 0:01:27]}  Nh5 {[%clk 0:01:12]} 29. Kg2 {[%clk 0:01:02]}  Nf6 {[%clk 0:01:08]} 30. Bd3 {[%clk 0:01:00]}  Nd7 {[%clk 0:01:00]} 31. Be2 {[%clk 0:00:46]}  Qc7 {[%clk 0:00:49]} 32. Bg4 {[%clk 0:00:42]}  Nf6 {[%clk 0:00:48]} 33. Bf5 {[%clk 0:00:43]}  Ne8 {[%clk 0:00:43]} 34. Qb6 {[%clk 0:00:34]}  Qc2 {[%clk 0:00:36]} 35. Kg1 {[%clk 0:00:09]}  Nd6 {[%clk 0:00:34]} 36. g4 {[%clk 0:00:02]}  Nxf5 {[%clk 0:00:29]} 37. exf5 {[%clk 0:00:03]}  Qd1+ {[%clk 0:00:30]} 38. Kg2 {[%clk 0:00:03]}  Qxg4+ {[%clk 0:00:30]} 39. Bg3 {[%clk 0:00:02]}  Qe4+ {[%clk 0:00:29]} 40. Kg1 {[%clk 0:00:01]}  Qxd5 {[%clk 0:00:29]} 41. Qf6 {[%clk 0:00:01]}  Bc5+ {[%clk 0:00:29]} 42. Kf1 {[%clk 0:00:01]}  Qf3+ {[%clk 0:00:28]} 43. Ke1 {[%clk 0:00:02]}  Bb4# {[%clk 0:00:28]} 0-1


[Site "https://www.chess.com"]